bitfinex/quotes_ETHUSD_20241217
["timestamp","ask_amount","ask_price","bid_price","bid_amount"]
[1734479270599,1.06559862,3872.8,3872.7,0.1828898]
[1734479270799,6.13168858,3872.8,3872.7,0.1828898]
[1734479271003,3.08353333,3872.8,3872.7,0.1828898]
[1734479271183,3.08353333,3872.8,3871.6,0.25]
[1734479271184,9.28034359,3872.8,3871.6,0.25828]
[1734479271521,1.06149571,3871.9,3871.1,0.25832]
[1734479271725,1.32168124,3871.8,3871.2,0.40073684]
[1734479271929,1.06149571,3871.9,3871.2,0.25]
[1734479272232,1.06149571,3872.3,3870.6,0.5167]
[1734479272446,1.59224357,3872.4,3870.7,0.25835]
[1734479272447,2.3728489,3872.2,3870.7,0.25835]
[1734479272589,1.06149571,3872.8,3871.0,0.25832]
[1734479272787,2.58237,3872.5,3870.5,0.25]
[1734479272985,2.58239,3872.4,3870.8,0.25834]
[1734479273184,1.06149571,3872.6,3870.6,0.7787]
[1734479273390,1.3070056,3872.5,3870.8,0.25834]
[1734479273592,2.5824,3872.4,3870.6,0.7787]
[1734479273893,2.58241,3872.4,3870.6,1.03705]
[1734479274234,2.58246,3872.3,3870.6,0.7787]
[1734479274392,0.03228327,3872.2,3870.6,0.7787]
[1734479274590,0.12831688,3872.6,3870.6,0.7787]
[1734479274591,2.58245,3872.3,3870.6,0.7787]
[1734479274814,0.03228576,3872.2,3870.6,0.7787]
[1734479275023,0.12831688,3872.6,3870.6,0.7787]
[1734479275232,0.55,3873.5,3871.3,0.7787]
[1734479275536,1.81579571,3875.2,3872.6,0.7787]
[1734479275702,1.81579571,3875.2,3873.1,3.99795883]
[1734479275703,3.33483,3875.2,3873.1,3.99795883]
[1734479275887,2.84877261,3875.9,3873.7,3.99795883]
[1734479275888,0.03226787,3875.1,3873.7,3.99795883]
[1734479276090,0.26867261,3875.9,3873.7,3.99795883]
[1734479276091,0.12842476,3874.0,3873.8,0.7787]
[1734479276293,0.26867261,3875.9,3874.0,3.0]
[1734479276499,0.26867261,3875.9,3875.6,3.99795883]
[1734479276888,0.39727798,3875.9,3875.6,3.99795883]
[1734479277521,3.33271,3878.4,3875.6,3.99795883]
[1734479277725,0.12868277,3877.0,3876.8,3.99795883]
[1734479277926,2.57813,3878.8,3876.9,3.99795883]
[1734479278140,0.03223461,3878.7,3876.1,3.99795883]
[1734479278351,2.57821,3878.7,3876.1,3.99795883]
[1734479278492,1.37720502,3879.5,3876.1,3.99795883]
[1734479278493,0.13007603,3878.0,3876.1,3.99795883]
[1734479278694,0.0322429,3877.9,3876.1,3.99795883]
[1734479278895,0.13007603,3878.0,3876.1,3.99795883]
[1734479279095,0.13007603,3878.0,3876.2,0.39979588]
[1734479279803,0.03223964,3877.9,3876.2,0.39979588]
[1734479279997,0.55,3877.8,3875.7,3.99795883]
[1734479280197,0.03224147,3877.7,3875.7,3.99795883]
[1734479280421,0.13007603,3878.0,3875.7,3.99795883]
[1734479280627,0.0322398,3877.9,3875.8,0.39979588]
[1734479280942,0.0322398,3877.9,3875.9,0.7787]
[1734479281622,0.55,3877.8,3875.9,0.7787]
[1734479281822,0.55,3877.6,3875.9,0.7787]
[1734479282024,0.032245,3877.5,3875.9,0.7787]
[1734479282266,0.032245,3877.5,3874.4,3.99795883]
[1734479282267,3.0,3877.1,3874.5,0.752]
[1734479282546,3.55,3876.8,3874.5,0.752]
[1734479282748,3.55,3876.6,3874.5,0.752]
[1734479282922,0.03225262,3876.5,3874.5,0.752]
[1734479283138,0.55,3876.2,3874.5,0.752]
[1734479283318,0.03225481,3876.1,3874.5,0.752]
[1734479283518,0.55,3876.0,3874.5,0.752]
[1734479283814,0.55,3876.4,3874.5,0.752]
[1734479284030,4.75225883,3877.9,3874.5,0.752]
[1734479284222,3.0,3877.4,3874.5,0.752]
[1734479284414,0.03224545,3877.4,3874.5,3.752]
[1734479284619,3.0,3877.3,3874.6,0.79999588]
[1734479284817,0.12910954,3877.0,3874.7,0.55]
[1734479285121,0.03224596,3877.8,3875.2,0.8025]
[1734479285418,0.13159589,3877.3,3875.2,0.8025]
[1734479286123,0.03224416,3877.2,3875.2,0.8025]
[1734479286330,0.03224416,3877.2,3875.3,0.78004588]
[1734479286561,0.03224416,3877.2,3874.5,3.0]
[1734479286723,0.55,3877.1,3874.5,3.0]
[1734479286921,0.55,3876.9,3874.5,3.0]
[1734479287121,0.55,3876.9,3874.4,3.99795883]
[1734479287729,3.55,3876.9,3874.4,3.99795883]
[1734479287931,5.57952,3876.7,3874.5,0.39979588]
[1734479288135,2.71076589,3877.3,3874.5,0.39979588]
[1734479288136,3.55,3877.1,3874.5,0.39979588]
[1734479288489,5.57938,3876.9,3874.5,0.39979588]
[1734479288634,3.81707839,3876.8,3873.9,0.55]
[1734479288821,0.55,3876.6,3873.9,0.55]
[1734479289018,0.55,3876.4,3873.8,3.99795883]
[1734479289223,2.58012,3875.8,3873.2,3.99795883]
[1734479289456,0.03225497,3875.7,3873.4,0.25]
[1734479289631,3.03225497,3875.9,3873.5,0.50504588]
[1734479290258,0.03225497,3875.9,3873.5,0.50504588]
[1734479290459,0.03225497,3875.9,3873.6,0.55]
[1734479290460,0.2352638,3875.8,3873.6,0.55]
[1734479290631,0.2352638,3875.8,3873.5,0.50504588]
[1734479290632,0.58225498,3875.7,3873.5,0.50504588]
[1734479290834,0.2352638,3875.6,3873.5,0.50504588]
[1734479291026,0.03225798,3875.5,3873.6,0.13075459]
[1734479291227,0.23544672,3875.4,3873.6,0.13075459]
[1734479292293,0.61261167,3875.4,3873.6,0.13075459]
[1734479292645,0.23544672,3875.3,3873.6,0.13075459]
[1734479292960,0.25,3877.7,3873.9,3.99795883]
[1734479292961,0.37716495,3876.7,3873.9,3.99795883]
[1734479293188,2.57935,3877.0,3874.3,0.8025]
[1734479293477,2.57768,3879.5,3875.3,3.99795883]
[1734479293673,2.57768,3879.5,3874.4,0.55]
[1734479293674,0.13052744,3878.5,3877.0,0.8025]
[1734479293822,2.57788,3879.2,3877.0,0.8025]
[1734479294023,0.7908,3879.7,3877.1,0.48004588]
[1734479294024,0.12667475,3878.9,3877.1,0.48004588]
[1734479294259,3.36837,3879.7,3877.1,0.48004588]
[1734479294464,0.13202212,3879.7,3877.5,3.99795883]
[1734479294627,2.57759,3879.6,3877.5,3.99795883]
[1734479294976,0.13202212,3879.7,3877.5,3.99795883]
[1734479294977,2.60989765,3879.5,3877.5,3.99795883]
[1734479295262,2.57772,3879.4,3877.6,0.39979588]
[1734479295746,0.03222657,3879.3,3877.6,0.39979588]
[1734479296124,0.03222657,3879.3,3877.1,0.48004588]
[1734479296326,3.03222657,3879.3,3877.1,0.48004588]
[1734479296526,2.57833,3878.5,3877.1,0.48004588]
[1734479296952,2.57839,3878.4,3877.1,0.48004588]
[1734479297263,2.57829,3878.6,3877.1,0.48004588]
[1734479297559,2.57829,3878.6,3877.0,0.8025]
[1734479297871,2.57837,3878.5,3877.0,0.8025]
[1734479298361,2.57825,3878.6,3877.0,0.8025]
[1734479298552,2.57833,3878.5,3877.0,0.8025]
[1734479299059,0.55,3878.6,3877.0,0.8025]
[1734479299259,0.55,3878.6,3877.1,0.48004588]
[1734479299863,2.82723,3880.2,3877.1,0.48004588]
[1734479299864,0.55,3879.0,3877.1,0.48004588]
[1734479300029,2.57812,3878.8,3877.1,0.48004588]
[1734479300224,0.55,3879.0,3877.1,0.48004588]
[1734479300449,2.57805,3878.9,3877.1,0.48004588]
[1734479300636,0.55,3879.2,3877.2,0.52805047]
[1734479300970,0.55,3879.0,3877.2,0.52805047]
[1734479301123,3.16033297,3878.9,3877.0,3.8025]
[1734479301460,0.12701482,3878.6,3877.0,3.8025]
[1734479303435,2.57838,3878.4,3877.0,3.8025]
[1734479303663,0.12701482,3878.6,3877.0,3.8025]
[1734479303866,2.70526482,3878.6,3877.0,3.8025]
[1734479304034,0.12701482,3878.6,3877.1,0.78004588]
[1734479304661,2.70526482,3878.6,3877.1,0.78004588]
[1734479304837,2.57866,3878.0,3877.0,0.8025]
[1734479305036,0.03223772,3877.9,3877.0,0.8025]
[1734479305235,2.57852,3878.2,3877.0,0.8025]
[1734479305549,2.61075894,3878.2,3877.0,0.8025]
[1734479305748,0.03223894,3878.2,3877.0,0.8025]
[1734479305940,0.55,3878.5,3877.0,0.8025]
[1734479306570,2.57848,3878.3,3877.0,0.8025]
[1734479306937,0.03223569,3878.2,3877.0,0.8025]
[1734479307144,2.57858,3878.1,3877.0,0.8025]
[1734479307361,0.55,3878.3,3877.0,0.8025]
[1734479307362,0.55,3877.9,3877.0,0.8025]
[1734479307566,2.57918,3877.2,3875.7,0.7793]
[1734479307807,2.57919,3877.2,3875.7,0.7793]
[1734479308341,0.55,3877.3,3875.7,0.7793]
[1734479308542,0.03224624,3877.2,3875.7,0.7793]
[1734479308764,2.57943,3876.9,3875.7,0.7793]
[1734479308995,2.57945,3876.8,3875.7,0.7793]
[1734479309141,1.544,3877.1,3875.7,0.7793]
[1734479309493,3.1296,3876.6,3875.7,0.7793]
[1734479310078,0.55,3876.6,3875.7,0.7793]
[1734479310252,2.57971,3876.4,3875.7,0.7793]
[1734479310646,2.57979,3876.3,3875.7,0.7793]
[1734479311061,2.57979,3876.3,3874.4,3.0]
[1734479311290,0.03225082,3876.6,3874.5,0.69979588]
[1734479311605,3.0,3876.7,3874.5,0.69979588]
[1734479311748,0.55,3877.1,3874.5,0.69979588]
[1734479312098,2.57951,3876.7,3874.5,0.69979588]
[1734479312726,0.1306494,3876.8,3874.5,0.69979588]
[1734479312865,0.1306494,3876.8,3874.0,0.75504588]
[1734479312866,0.58224834,3876.7,3874.6,0.76977547]
[1734479313066,3.58224834,3876.7,3874.0,0.50504588]
[1734479313266,0.55,3876.5,3874.0,0.50504588]
[1734479313516,2.57976,3876.4,3874.0,0.50504588]
[1734479313718,0.55,3876.5,3874.0,0.50504588]
[1734479313933,0.1306494,3876.8,3874.3,3.99795883]
[1734479314086,3.0,3877.0,3874.6,0.55]
[1734479314423,3.0,3877.0,3874.4,3.39979588]
[1734479314424,3.0,3877.2,3874.8,0.8111]
[1734479314603,3.0,3877.0,3874.8,0.8111]
[1734479315221,0.12595977,3876.9,3874.8,0.8111]
[1734479315383,2.57953,3876.7,3874.8,0.8111]
[1734479315581,2.57971,3876.5,3874.8,0.8111]
[1734479315921,0.55,3876.7,3874.8,0.8111]
[1734479316226,2.58011,3875.9,3874.8,0.8111]
[1734479316515,0.03225295,3875.8,3874.8,0.8111]
[1734479317430,2.58011,3875.8,3874.8,0.8111]
[1734479317984,2.5799,3876.2,3874.8,0.8111]
[1734479318318,2.58015,3875.8,3874.8,0.8111]
[1734479318828,2.58011,3875.8,3874.8,0.8111]
[1734479319389,0.58225647,3876.1,3874.8,0.8111]
[1734479319697,2.58004,3875.9,3874.8,0.8111]
[1734479319919,3.0,3876.0,3874.8,0.8111]
[1734479320235,0.55,3875.8,3874.8,0.8111]
[1734479320373,2.58059,3875.1,3874.2,0.8111]
[1734479320571,0.03225974,3875.0,3874.2,0.8111]
[1734479320799,0.03226081,3875.2,3874.2,0.8111]
[1734479321115,3.67428652,3875.2,3874.2,0.8111]
[1734479321311,1.06149571,3875.3,3874.2,0.8111]
[1734479321468,1.06149571,3875.4,3874.2,0.8111]
[1734479321668,1.06149571,3875.3,3874.2,0.8111]
[1734479321968,2.39181575,3875.2,3874.2,0.8111]
[1734479322192,1.33032004,3875.2,3874.2,0.8111]
[1734479322392,1.06149571,3875.3,3874.2,0.8111]
[1734479322596,4.59224357,3875.5,3874.2,0.8111]
[1734479322597,1.06149571,3875.4,3874.2,0.8111]
[1734479322792,2.39162918,3875.4,3874.2,0.8111]
[1734479322995,1.06149571,3875.5,3874.2,0.8111]
[1734479323302,1.33010825,3875.5,3874.2,0.8111]
[1734479323508,1.06149571,3875.7,3874.2,0.8111]
[1734479323694,0.13000839,3875.8,3874.2,0.8111]
[1734479325406,2.58004,3875.9,3874.2,0.8111]
[1734479325795,1.06149571,3876.0,3874.2,0.8111]
[1734479325997,1.32965303,3876.0,3874.2,0.8111]
[1734479326198,2.58002,3876.0,3874.2,0.8111]
[1734479327531,6.64134571,3876.2,3874.2,0.8111]
[1734479328032,3.0,3876.0,3874.2,0.8111]
[1734479328408,3.0,3876.1,3874.2,0.8111]
[1734479330055,1.06149571,3876.4,3874.2,0.8111]
[1734479330254,5.25951906,3877.0,3873.7,3.99795883]
[1734479330255,1.06149571,3876.7,3874.5,0.55]
[1734479330457,2.57953,3876.7,3874.7,0.7505]
[1734479331336,2.57938,3876.9,3874.7,0.7505]
[1734479332301,3.64079571,3877.1,3874.9,0.7505]
[1734479332525,2.5793,3877.1,3874.9,0.7505]
[1734479332713,1.86364107,3877.2,3874.9,0.7505]
[1734479332920,2.57942,3876.9,3875.1,0.7505]
[1734479333120,2.57942,3876.9,3875.1,0.73466595]
[1734479333411,3.03224539,3877.1,3875.1,0.73466595]
[1734479333649,2.57938,3876.9,3875.1,0.73466595]
[1734479333806,2.57931,3877.0,3875.1,0.73466595]
[1734479334058,2.57942,3876.9,3875.2,0.3864716]
[1734479334208,2.70915186,3876.9,3875.1,0.73466595]
[1734479335429,0.12973186,3876.9,3875.1,0.73466595]
[1734479336338,2.57946,3876.8,3875.1,0.73466595]
[1734479336541,0.12973186,3876.9,3875.1,0.73466595]
[1734479336542,0.03224545,3876.7,3875.1,0.73466595]
[1734479336845,0.55,3876.6,3875.1,0.73466595]
[1734479337033,2.5801,3875.9,3875.1,0.73466595]
[1734479337840,0.03225395,3876.3,3875.1,0.73466595]
[1734479338027,2.57984,3876.2,3875.1,0.73466595]
[1734479338216,2.58079,3874.8,3873.9,0.7505]
[1734479338411,0.03226257,3874.7,3873.9,0.7505]
[1734479338607,0.03226257,3875.0,3873.9,0.7505]
[1734479339004,2.58094,3874.6,3873.9,0.7505]
[1734479339405,0.03226257,3875.0,3873.9,0.7505]
[1734479339605,2.58042,3875.4,3873.9,0.7505]
[1734479339847,2.58052,3875.2,3873.9,0.7505]
[1734479340166,6.64171571,3875.7,3873.9,0.7505]
[1734479340167,2.58059,3875.1,3873.9,0.7505]
[1734479340524,2.58086,3874.7,3873.9,0.7505]
[1734479340865,2.58072,3874.9,3873.9,0.7505]
[1734479341190,1.09375846,3875.4,3873.9,0.7505]
[1734479341191,2.58087,3874.7,3873.9,0.7505]
[1734479341311,2.58078,3874.8,3873.9,0.7505]
[1734479341768,3.0,3875.3,3873.9,0.7505]
[1734479342072,2.5806,3875.1,3873.9,0.7505]
[1734479342611,2.58058,3875.1,3873.9,0.7505]
[1734479342810,1.06149571,3875.5,3873.9,0.7505]
[1734479343011,3.0,3875.2,3873.9,0.7505]
[1734479343249,3.03226038,3875.2,3873.9,0.7505]
[1734479343432,3.0,3875.0,3873.9,0.7505]
[1734479343647,2.12299143,3875.6,3873.9,0.7505]
[1734479343648,1.06149571,3875.9,3873.9,0.7505]
[1734479343960,2.5799,3876.2,3874.0,0.55]
[1734479343961,1.06149571,3876.2,3874.0,0.55]
[1734479344183,3.64126571,3876.4,3874.1,0.7798]
[1734479344379,3.64126571,3876.4,3874.0,0.55]
[1734479344380,3.64126571,3876.4,3874.3,0.7798]
[1734479344683,1.06149571,3876.5,3874.3,0.7798]
[1734479344816,4.17136357,3877.3,3874.7,3.7798]
[1734479345015,1.36284107,3877.2,3874.9,0.7798]
[1734479345211,2.57936,3877.0,3874.9,0.7798]
[1734479345434,2.57936,3877.0,3875.1,0.7798]
[1734479346025,0.03224464,3876.9,3875.1,0.7798]
[1734479346977,2.57992,3876.1,3875.1,0.7798]
[1734479347183,0.03225116,3876.0,3875.1,0.7798]
[1734479347344,2.58013,3875.8,3875.1,0.7798]
[1734479348274,1.59224357,3876.2,3875.1,0.7798]
[1734479348476,3.0,3876.1,3875.1,0.7798]
[1734479349275,1.33311904,3876.0,3875.1,0.7798]
[1734479349451,1.33378968,3875.9,3875.1,0.7798]
[1734479349653,4.17215357,3876.1,3875.1,0.7798]
[1734479349865,1.33385517,3876.0,3875.1,0.7798]
[1734479350175,4.17229357,3875.9,3874.3,0.7798]
[1734479350374,1.33385517,3875.8,3874.3,0.7798]
[1734479350544,2.92609874,3875.8,3874.3,0.7798]
[1734479350747,3.91405517,3875.7,3874.3,0.7798]
[1734479350942,1.59224357,3875.9,3874.3,0.7798]
[1734479350943,4.36611044,3875.6,3874.3,0.7798]
[1734479351166,2.58031,3875.5,3874.3,0.7798]
[1734479351552,1.33511789,3875.4,3874.3,0.7798]
[1734479351851,2.58031,3875.5,3874.3,0.7798]
[1734479351852,2.58061,3875.1,3874.3,0.7798]
[1734479352053,3.91591873,3875.0,3874.3,0.7798]
[1734479352345,1.33527509,3874.9,3874.3,0.7798]
[1734479352545,1.33527509,3874.8,3874.3,0.7798]
[1734479352781,1.62450304,3875.0,3873.3,0.7798]
[1734479352950,1.33600912,3874.9,3873.3,0.7798]
[1734479353140,1.59224357,3875.1,3873.3,0.7798]
[1734479353546,1.59224357,3875.0,3873.3,0.7798]
[1734479353744,2.92816139,3874.9,3873.3,0.7798]
[1734479354085,1.59224357,3875.6,3873.6,0.7798]
[1734479354377,1.59224357,3875.6,3873.8,0.7798]
[1734479354586,1.33632228,3875.5,3873.8,0.7798]
[1734479354772,2.41392135,3875.5,3873.8,0.7798]
[1734479355084,1.59224357,3875.7,3873.9,0.55]
[1734479355085,1.07759907,3875.6,3873.9,0.55]
[1734479355243,2.69288813,3876.1,3874.0,0.7798]
[1734479355244,1.07759907,3875.8,3874.0,0.7798]
[1734479355448,2.41409678,3875.7,3874.2,0.7798]
[1734479355648,1.07759907,3875.7,3874.2,0.7798]
[1734479355944,1.07759907,3875.9,3874.2,0.7798]
[1734479356147,2.41406861,3875.8,3874.2,0.7798]
[1734479356350,1.07759907,3875.9,3874.2,0.7798]
[1734479356574,1.07759907,3875.9,3874.4,0.7798]
[1734479356751,1.33648911,3875.8,3874.4,0.7798]
[1734479356956,1.07759907,3875.6,3874.4,0.7798]
[1734479357151,1.33659252,3875.5,3874.4,0.7798]
[1734479357392,2.41419883,3875.4,3874.4,0.7798]
[1734479357588,1.33667599,3875.3,3874.4,0.7798]
[1734479357895,1.07759907,3875.4,3874.4,0.7798]
[1734479358191,2.41430611,3875.3,3874.4,0.7798]
[1734479358395,1.59224357,3875.5,3874.4,0.7798]
[1734479358396,2.41430611,3875.2,3874.4,0.7798]
[1734479358617,1.33670704,3875.1,3874.4,0.7798]
[1734479358752,1.07759907,3875.2,3874.4,0.7798]
[1734479359467,0.0322567,3875.1,3874.4,0.7798]
[1734479359667,1.07759907,3875.6,3874.4,0.7798]
[1734479360083,2.41421128,3875.5,3874.4,0.7798]
[1734479360359,1.07759907,3875.6,3874.4,0.7798]
[1734479360569,1.33668683,3875.6,3874.4,0.7798]
[1734479360756,1.07759907,3875.3,3874.4,0.7798]
[1734479360975,2.41434142,3875.2,3874.4,0.7798]
[1734479361175,2.12299143,3875.5,3874.4,0.7798]
[1734479361176,1.07759907,3875.5,3874.4,0.7798]
[1734479361390,1.07759907,3875.7,3874.6,3.49460154]
[1734479361591,1.07759907,3876.2,3874.9,0.55]
[1734479361768,1.07759907,3876.6,3875.0,0.7798]
[1734479361978,1.07759907,3876.6,3875.1,0.7798]
[1734479362181,1.07759907,3876.7,3875.1,0.7798]
[1734479362367,1.07759907,3876.8,3875.1,0.7798]
[1734479362693,2.38146205,3876.7,3875.3,0.7798]
[1734479362860,1.07759907,3876.8,3875.3,0.7798]
[1734479363187,1.30384749,3876.7,3875.3,0.7798]
[1734479363393,1.07759907,3876.9,3875.3,0.7798]
[1734479363591,1.3035935,3876.8,3875.3,0.7798]
[1734479363760,1.07759907,3876.9,3875.3,0.7798]
[1734479363956,2.38121131,3876.8,3875.3,0.7798]
[1734479364268,1.30350316,3876.7,3875.3,0.7798]
[1734479364475,1.07759907,3876.8,3875.3,0.7798]
[1734479365189,1.07759907,3876.9,3875.3,0.7798]
[1734479365521,1.30329787,3876.8,3875.3,0.7798]
[1734479365719,1.30329787,3876.7,3875.3,0.7798]
[1734479366081,0.03224511,3876.6,3875.3,0.7798]
[1734479366386,1.07759907,3876.7,3875.3,0.7798]
[1734479366569,2.38088228,3876.6,3875.3,0.7798]
[1734479366775,1.07759907,3876.7,3875.3,0.7798]
[1734479366970,1.30328403,3876.6,3875.3,0.7798]
[1734479367170,1.07759907,3876.7,3875.3,0.7798]
[1734479367371,1.30320325,3876.6,3875.3,0.7798]
[1734479367694,1.07759907,3876.8,3875.3,0.7798]
[1734479367909,1.30324082,3876.7,3875.3,0.7798]
[1734479368070,1.07759907,3876.7,3875.3,0.7798]
[1734479368513,1.07759907,3876.8,3875.3,0.7798]
[1734479368798,1.30321946,3876.7,3875.3,0.7798]
[1734479368974,1.07759907,3876.8,3875.3,0.7798]
[1734479369173,1.30322424,3876.7,3875.3,0.7798]
[1734479369499,1.07759907,3877.2,3875.9,3.98780504]
[1734479369671,2.6921138,3877.7,3876.1,0.7798]
[1734479369672,1.07759907,3877.7,3876.1,0.7798]
[1734479369873,1.07759907,3877.8,3876.1,0.7798]
[1734479370077,1.07759907,3878.0,3876.1,0.7798]
[1734479370692,1.30220227,3877.9,3876.1,0.7798]
[1734479370898,1.07759907,3878.0,3876.1,0.7798]
[1734479371226,1.07759907,3878.1,3876.3,0.7798]
[1734479371429,1.59224357,3878.3,3876.3,0.7798]
[1734479371430,1.07759907,3878.2,3876.3,0.7798]
[1734479371634,2.37922831,3878.1,3876.3,0.7798]
[1734479371813,1.07759907,3878.1,3876.3,0.7798]
[1734479372018,1.07759907,3878.2,3876.3,0.7798]
[1734479372219,1.07759907,3878.2,3876.5,0.7798]
[1734479372624,2.12299143,3878.6,3876.7,0.7798]
[1734479372625,1.07759907,3878.6,3876.7,0.7798]
[1734479372936,1.07759907,3878.9,3876.8,0.7798]
[1734479373233,1.07759907,3879.1,3877.1,0.7968]
[1734479373396,4.98003357,3879.3,3877.1,0.7968]
[1734479373397,1.07759907,3879.2,3877.1,0.7968]
[1734479373596,1.07759907,3879.2,3877.0,3.0]
[1734479373597,1.07759907,3879.0,3877.3,0.7968]
[1734479373779,1.07759907,3879.1,3877.3,0.7968]
[1734479373981,1.33227181,3879.0,3877.3,0.7968]
[1734479374342,0.03223019,3879.0,3877.3,0.7968]
[1734479374642,0.12719858,3878.9,3877.3,0.7968]
[1734479374842,0.12719858,3878.9,3877.4,0.15752605]
[1734479376200,0.12719858,3878.9,3877.5,0.7968]
[1734479377286,2.70527858,3878.9,3877.5,0.7968]
[1734479377559,0.03223024,3878.8,3877.5,0.7968]
[1734479378629,2.57841,3878.4,3877.5,0.7968]
[1734479379539,0.0322354,3878.3,3877.5,0.7968]
[1734479380946,2.61064542,3878.4,3877.5,0.7968]
[1734479381498,0.12719858,3878.9,3877.5,0.7968]
[1734479382204,3.0,3878.7,3877.5,0.7968]
[1734479382442,2.57811,3878.8,3877.5,0.7968]
[1734479382943,3.12719858,3878.9,3877.5,0.7968]
[1734479383243,3.0,3878.8,3877.5,0.7968]
[1734479383816,2.70526858,3878.9,3877.5,0.7968]
[1734479383817,0.12719858,3878.9,3877.5,0.7968]
[1734479384022,3.12719858,3878.9,3877.5,0.7968]
[1734479384571,1.07759907,3879.6,3877.5,0.7968]
[1734479384719,2.57769,3879.5,3877.5,0.7968]
[1734479385069,2.5778,3879.3,3877.5,0.7968]
[1734479385271,2.61013794,3879.2,3877.5,0.7968]
[1734479385566,2.61009794,3879.2,3877.5,0.7968]
[1734479385779,2.61009794,3879.2,3877.6,0.37968]
[1734479386073,0.15833623,3879.1,3877.5,0.7968]
[1734479386398,0.12610648,3879.1,3877.5,0.7968]
[1734479389829,2.57736,3880.0,3878.0,0.7921]
[1734479390131,0.784,3880.1,3878.0,0.7921]
[1734479390458,0.03222165,3880.0,3878.2,0.7921]
[1734479391229,3.0,3880.1,3878.2,0.7921]
[1734479391468,2.5772,3880.2,3878.2,0.7921]
[1734479391681,0.03222167,3880.1,3878.2,0.7921]
[1734479391840,0.03222168,3880.1,3878.2,0.7921]
[1734479392025,2.5772,3880.2,3878.4,0.7921]
[1734479392422,2.60947169,3880.1,3878.4,0.7921]
[1734479392653,0.88751656,3880.5,3878.4,0.7921]
[1734479392654,0.13033477,3879.8,3878.4,0.7921]
[1734479393140,1.544,3879.7,3878.4,0.7921]
[1734479393345,0.13033477,3879.8,3878.4,0.7921]
[1734479394584,0.13033477,3879.8,3878.4,0.95632607]
[1734479394747,0.13033477,3879.8,3878.4,0.7921]
[1734479395244,2.57712,3880.3,3878.4,0.7921]
[1734479395429,2.57727,3880.1,3878.4,0.7921]
[1734479395782,0.03222043,3880.0,3878.4,0.7921]
[1734479396082,2.60928043,3880.4,3878.4,0.7921]
[1734479396783,0.03222043,3880.4,3878.4,0.7921]
[1734479397090,2.60929043,3880.4,3878.4,0.7921]
[1734479397233,0.03222043,3880.4,3878.4,0.7921]
[1734479399075,3.0,3880.7,3878.4,0.7921]
[1734479399274,0.13110899,3880.2,3878.4,0.7921]
[1734479400174,0.784,3880.9,3878.6,0.7921]
[1734479400336,2.5769,3880.7,3878.8,0.7921]
[1734479400677,3.15900867,3880.8,3878.8,0.7921]
[1734479400987,1.0694498,3881.1,3879.5,3.0]
[1734479401139,1.0694498,3881.1,3879.6,0.7921]
[1734479401331,0.13019485,3881.2,3879.6,0.7921]
[1734479402346,0.03221161,3881.5,3879.6,0.7921]
[1734479402603,2.57699,3880.5,3879.6,0.7921]
[1734479402744,2.60928926,3880.4,3879.6,0.7921]
[1734479402944,2.57707,3880.4,3879.6,0.7921]
[1734479403363,0.0322186,3880.3,3879.6,0.7921]
[1734479403585,0.0322186,3880.3,3878.5,0.8001]
[1734479403760,3.0,3880.0,3878.5,0.8001]
[1734479404078,3.0,3880.1,3878.5,0.8001]
[1734479404280,0.03222325,3880.0,3878.5,0.8001]
[1734479404488,2.60954325,3880.0,3878.5,0.8001]
[1734479404683,2.57745,3879.9,3878.5,0.8001]
[1734479404857,0.03222327,3879.8,3878.5,0.8001]
[1734479405059,0.03222327,3879.7,3878.5,0.8001]
[1734479405265,2.57745,3879.8,3878.5,0.8001]
[1734479405658,0.03222328,3879.7,3878.5,0.8001]
[1734479405855,2.57745,3879.8,3878.5,0.8001]
[1734479406159,1.3247,3880.2,3878.5,0.8001]
[1734479406160,2.57733,3880.0,3878.5,0.8001]
[1734479406347,2.57739,3879.9,3878.5,0.8001]
[1734479406551,0.03222329,3879.9,3878.5,0.8001]
[1734479406750,2.57752,3879.7,3878.5,0.8001]
[1734479406986,0.0322233,3879.6,3878.5,0.8001]
[1734479407388,0.0322233,3879.8,3878.5,0.8001]
[1734479407557,2.6096933,3879.8,3878.5,1.17835929]
[1734479408084,2.57747,3879.8,3878.5,1.17835929]
[1734479408292,2.57733,3880.0,3878.5,1.17835929]
[1734479408449,1.10368444,3880.1,3878.5,1.17835929]
[1734479408450,2.57738,3879.9,3878.5,1.17835929]
[1734479410002,2.57738,3879.9,3878.5,0.8001]
[1734479410003,2.57764,3879.6,3878.5,0.8001]
[1734479410213,0.0322265,3879.5,3878.5,0.8001]
[1734479410363,2.57764,3879.6,3878.5,0.8001]
[1734479411162,0.03222651,3879.5,3878.5,0.8001]
[1734479411578,2.60987651,3879.5,3878.5,0.8001]
[1734479412287,3.64911113,3879.5,3878.5,0.8001]
[1734479412688,0.03222653,3879.4,3878.5,0.8001]
[1734479413565,3.64951113,3878.9,3877.5,0.7897]
[1734479413895,1.07146113,3878.6,3877.5,0.7897]
[1734479414098,1.07146113,3878.3,3877.5,0.7897]
[1734479414299,0.03223585,3878.2,3877.5,0.7897]
[1734479415219,2.37462564,3878.1,3877.5,0.7897]
[1734479415397,1.10369698,3878.2,3877.5,0.7897]
[1734479415809,1.30312621,3878.1,3877.5,0.7897]
[1734479416014,1.10369698,3878.2,3877.5,0.7897]
[1734479416015,0.0322359,3878.0,3877.5,0.7897]
[1734479416789,1.07146113,3878.2,3877.5,0.7897]
[1734479416988,1.63942756,3878.4,3877.5,0.7897]
[1734479416989,1.07146113,3878.4,3877.5,0.7897]
[1734479417310,1.07146113,3878.7,3877.5,0.7897]
[1734479417512,1.30327167,3878.7,3877.5,0.7897]
[1734479417677,1.07146113,3878.8,3877.5,0.7897]
[1734479417878,2.37472971,3878.8,3877.5,0.7897]
[1734479418683,2.4069597,3878.7,3877.7,0.8285]
[1734479418924,1.30326858,3878.6,3877.7,0.8285]
[1734479419213,1.10369378,3878.5,3877.7,0.8285]
[1734479419415,1.07146113,3878.4,3877.7,0.8285]